bitfinex-derivatives/quotes_ETHF0:USTF0_20250518
["timestamp","ask_amount","ask_price","bid_price","bid_amount"]
[1747611238143,4.0222,2454.8,2454.6,10.70144]
[1747611238535,0.81451,2454.4,2454.3,1.3497]
[1747611238729,1.3012,2454.7,2454.6,0.81445]
[1747611239042,3.2078,2454.8,2454.3,1.3497]
[1747611239242,14.2217,2455.1,2454.4,0.12731639]
[1747611239433,0.81444,2454.7,2454.5,2.29148639]
[1747611239637,2.11553,2455.0,2454.6,0.1273163]
[1747611239839,0.81435,2454.9,2454.7,1.4001]
[1747611240133,0.81438,2454.9,2454.7,2.21451]
[1747611240340,1.3012,2455.0,2454.7,1.4001]
[1747611240537,1.3012,2455.0,2454.1,4.2808]
[1747611240538,2.03605,2454.7,2454.1,4.2808]
[1747611240738,1.4197,2454.6,2454.2,0.12731969]
[1747611240933,0.81453,2454.4,2454.3,0.12731969]
[1747611241337,0.81453,2454.4,2454.0,1.4001]
[1747611241338,0.81455,2454.3,2454.1,0.81459]
[1747611241540,1.4197,2454.2,2454.1,0.81459]
[1747611241845,5.44208,2454.2,2454.1,0.12734054]
[1747611242045,6.51688,2454.2,2454.1,0.12734054]
[1747611242346,5.7023,2454.2,2453.7,9.887]
[1747611242538,4.0225,2453.9,2453.8,0.12736391]
[1747611242935,0.81478,2453.6,2453.5,1.18244165]
[1747611243142,3.2078,2453.6,2453.5,1.99725165]
[1747611243342,3.2078,2453.6,2453.5,1.18244165]
[1747611243648,5.37398,2453.6,2453.5,1.18244165]
[1747611243843,4.5592,2453.6,2453.5,1.99725165]
[1747611244037,5.37398,2453.6,2453.5,1.18244165]
[1747611244242,7.6172,2453.6,2453.5,1.99725165]
[1747611244543,7.6172,2453.6,2453.2,9.888]
[1747611244734,3.2078,2453.3,2452.8,41.068]
[1747611244938,1.3514,2453.2,2452.8,9.888]
[1747611245145,3.2078,2453.0,2452.8,9.888]
[1747611245343,1.3514,2452.9,2452.8,9.888]
[1747611245643,1.3514,2452.9,2452.8,10.70305]
[1747611246046,6.2658,2453.3,2452.9,0.81501]
[1747611246345,3.2078,2453.8,2453.7,0.81475]
[1747611246541,3.2078,2453.8,2453.2,9.889]
[1747611246542,13.1368,2453.8,2453.2,9.889]
[1747611246746,3.2078,2453.3,2452.8,9.889]
[1747611247044,3.2078,2453.0,2452.8,10.70403]
[1747611247240,0.81505,2452.8,2452.5,0.81513]
[1747611247447,1.3968,2452.7,2452.5,2.13783]
[1747611247739,0.81515,2452.5,2452.4,1.18244165]
[1747611248248,0.81519,2452.4,2452.1,1.3227]
[1747611248540,3.2078,2452.3,2452.2,0.81525]
[1747611248739,1.1649,2452.7,2451.9,9.889]
[1747611248935,9.944,2453.2,2452.5,2.03788]
[1747611249147,1.3279,2453.3,2452.6,11.2096]
[1747611249448,1.98267,2453.4,2452.6,21.12905784]
[1747611249744,1.98267,2453.4,2453.2,0.8149]
[1747611249745,1.3279,2453.3,2453.2,0.8149]
[1747611250144,3.2078,2453.6,2453.0,9.891]
[1747611250440,4.5357,2453.6,2453.5,0.81482]
[1747611250640,3.2078,2453.6,2453.5,0.09218003]
[1747611250840,3.2078,2453.6,2453.5,2.22760003]
[1747611251244,3.2078,2454.4,2454.3,0.81455]
[1747611251461,1.01067518,2454.7,2454.2,9.891]
[1747611251650,4.89141555,2454.8,2454.3,11.2116]
[1747611251945,3.2078,2454.7,2454.3,11.2116]
[1747611252144,0.81452,2454.4,2454.3,11.2116]
[1747611252349,4.02232,2454.4,2454.3,9.891]
[1747611252547,3.2078,2454.4,2453.9,2.11617]
[1747611252843,1.3801,2454.3,2453.9,1.3015]
[1747611253052,1.3801,2454.3,2453.9,9.89]
[1747611253249,0.81464,2454.1,2453.9,9.89]
[1747611253550,2.19475,2454.0,2453.9,9.89]
[1747611253853,1.3801,2454.0,2453.9,10.70469]
[1747611254141,1.1003,2454.5,2453.9,9.89]
[1747611254348,8.38391431,2455.0,2454.0,1.3015]
[1747611254544,1.3801,2454.9,2454.7,0.81442]
[1747611254739,3.2078,2455.0,2454.6,9.945]
[1747611255041,4.02213,2455.0,2454.6,9.945]
[1747611255240,3.2078,2455.0,2454.7,1.3772]
[1747611255441,2.49802555,2454.8,2454.5,9.945]
[1747611255644,1.4326,2454.7,2454.5,11.3222]
[1747611256249,1.68361555,2454.8,2454.7,0.81442]
[1747611256748,3.2078,2455.0,2454.9,0.81435]
[1747611256938,1.01214134,2455.2,2455.1,0.81429]
[1747611257351,1.01214134,2455.2,2455.1,0.94157599]
[1747611257947,1.01214134,2455.2,2455.1,0.94157209]
[1747611258147,1.82639134,2455.2,2455.1,0.12728209]
[1747611258346,0.81429,2455.1,2455.0,1.3772]
[1747611258546,0.81432,2455.0,2454.9,9.944]
[1747611258760,1.01214134,2455.2,2455.1,0.81429]
[1747611258958,1.34952178,2455.6,2455.5,0.81415]
[1747611259247,2.16364178,2455.6,2455.5,0.12729953]
[1747611259449,2.16364178,2455.6,2455.2,2.4186]
[1747611259450,2.16366178,2455.6,2455.4,9.942]
[1747611259647,1.34952178,2455.6,2455.5,0.81415]
[1747611259848,1.34952178,2455.6,2455.5,2.16605]
[1747611260051,1.34952178,2455.6,2455.5,5.35130969]
[1747611261349,1.34952178,2455.6,2455.5,2.29330969]
[1747611262253,1.34952178,2455.6,2455.5,2.16605]
[1747611262555,1.68361555,2456.0,2455.9,0.81402]
[1747611262754,1.68361555,2456.0,2455.9,10.75502]
[1747611263349,4.02174,2456.2,2456.0,0.81398]
[1747611263554,4.02174,2456.2,2456.0,2.23188]
[1747611263858,4.02172,2456.2,2456.0,2.23187]
[1747611264244,12.9218,2456.8,2456.2,2.03476]
[1747611264548,4.55776962,2457.1,2456.6,0.81378]
[1747611264743,0.81379,2456.6,2456.2,1.0643]
[1747611264942,13.1048,2456.5,2455.6,2.03531]
[1747611265258,14.4815,2456.5,2455.9,0.814]
[1747611265458,14.4815,2456.5,2455.8,9.939]
[1747611265657,0.81395,2456.2,2455.9,1.4183]
[1747611265956,0.81394,2456.2,2456.0,0.81398]
[1747611266157,0.81394,2456.2,2455.9,1.4183]
[1747611266158,3.2078,2456.2,2455.9,1.4183]
[1747611266359,0.81399,2456.0,2455.9,1.4183]
[1747611266752,0.81407,2455.8,2455.5,41.061]
[1747611266953,0.81404,2455.9,2455.7,0.81406]
[1747611267153,0.81418,2455.5,2455.3,0.81421]
[1747611267354,0.81425,2455.2,2455.1,9.939]
[1747611267558,0.81432,2455.0,2454.9,1.3511]
[1747611267754,11.2794,2455.1,2454.7,1.18244165]
[1747611267959,3.2078,2454.8,2454.7,1.18244165]
[1747611268255,3.058,2454.8,2454.7,1.18244165]
[1747611268460,13.48859,2454.8,2454.7,1.18244165]
[1747611268751,7.6742,2454.8,2454.7,1.18244165]
[1747611268960,18.37459,2454.8,2454.7,1.18244165]
[1747611269149,15.31659,2454.8,2454.7,1.18244165]
[1747611270154,0.81444,2454.7,2454.5,1.3511]
[1747611270360,1.4178,2454.7,2454.5,1.3511]
[1747611270560,2.23223,2454.7,2454.5,1.3511]
[1747611270750,0.81446,2454.6,2454.5,1.3511]
[1747611271055,0.81422,2455.4,2455.0,0.81432]
[1747611271257,0.81422,2455.4,2455.1,1.3987]
[1747611271457,2.23197,2455.5,2455.1,1.3987]
[1747611271759,2.23197,2455.5,2455.2,0.81424]
[1747611272058,3.2078,2456.0,2455.3,2.21291]
[1747611272255,11.3078,2455.9,2455.3,2.21291]
[1747611272560,4.02199,2455.4,2455.3,1.3987]
[1747611272856,3.2078,2455.4,2454.6,4.2869]
[1747611273051,0.81436,2454.9,2454.8,1.3987]
[1747611273247,0.81431,2455.1,2454.8,2.21307]
[1747611273451,1.4178,2455.3,2454.8,2.21307]
[1747611273653,1.4178,2455.3,2454.8,1.3987]
[1747611273967,0.81433,2455.0,2454.8,1.3987]
[1747611274362,0.81436,2454.9,2454.8,1.3987]
[1747611274557,1.3195,2454.9,2454.4,1.1101]
[1747611274853,0.81446,2454.6,2454.5,1.4094]
[1747611275156,0.81443,2454.7,2454.5,1.4094]
[1747611275360,4.0221,2455.1,2454.9,0.81433]
[1747611275552,4.5273,2455.4,2455.0,1.4094]
[1747611275752,0.81429,2455.1,2455.0,1.4094]
[1747611275947,3.2078,2455.4,2455.0,1.4094]
[1747611276258,0.81442,2454.7,2454.6,11.0231]
[1747611276460,0.81449,2454.5,2454.4,1.4187]
[1747611276657,0.81456,2454.3,2454.2,9.939]
[1747611277263,0.81475,2453.7,2453.6,1.25102228]
[1747611277451,3.2078,2453.7,2453.6,1.25102228]
[1747611277755,4.02255,2453.7,2453.6,1.25102228]
[1747611277955,4.02255,2453.7,2453.4,2.23354]
[1747611278157,0.81482,2453.5,2453.4,1.4187]
[1747611278359,0.81482,2453.5,2453.4,0.12736846]
[1747611278360,4.02262,2453.5,2453.4,0.12736846]
[1747611278565,4.02262,2453.5,2453.2,1.18244165]
[1747611278566,0.81489,2453.3,2453.2,1.18244165]
[1747611280050,2.20229,2453.3,2453.2,1.18244165]
[1747611280269,12.08829,2453.3,2453.2,1.18244165]
[1747611280564,0.81492,2453.2,2453.1,1.4196]
[1747611280765,3.2078,2453.2,2453.1,2.23455]
[1747611281059,0.81495,2453.1,2452.7,0.81507]
[1747611281266,4.02274,2453.2,2452.8,0.94243307]
[1747611281556,3.2078,2452.9,2452.4,0.09218003]
[1747611281761,3.2078,2452.9,2452.7,1.4196]
[1747611282153,4.02284,2452.9,2452.7,1.4196]
[1747611282361,4.02284,2452.9,2452.6,9.941]
[1747611282362,3.2078,2452.9,2452.6,9.941]
[1747611282564,0.81512,2452.6,2452.5,1.3797]
[1747611282764,13.0558,2452.6,2451.9,1.18244165]
[1747611283058,3.2078,2452.1,2452.0,0.08156606]
[1747611283362,4.02309,2452.1,2452.0,0.08156606]
[1747611283562,5.36019,2452.1,2452.0,0.08156606]
[1747611283761,0.81539,2451.8,2451.7,0.30212268]
[1747611283954,4.02319,2451.8,2451.7,0.38369872]
[1747611284766,2.03856,2451.7,2450.9,9.848]
[1747611284960,4.02345,2451.0,2450.9,1.3797]
[1747611285262,0.81569,2450.9,2450.6,3.48645925]
[1747611285451,1.3035,2450.9,2450.7,1.3686]
[1747611285858,1.3035,2450.9,2450.8,2.00717859]
[1747611286262,3.2078,2451.0,2450.8,2.00717859]
[1747611286866,3.2078,2451.0,2450.9,0.81569]
[1747611287061,3.2078,2451.3,2450.9,1.3686]
[1747611287369,1.0323,2451.7,2451.0,9.851]
[1747611287370,3.2078,2451.4,2451.0,9.851]
[1747611287665,0.81559,2451.2,2451.1,1.45019601]
[1747611287857,0.81565,2451.0,2450.9,3.058]
[1747611288159,9.877,2451.0,2450.3,1.3686]
[1747611288354,9.877,2451.0,2450.6,1.2948]
[1747611288558,10.69266,2451.0,2450.7,0.81574]
[1747611288757,1.3923,2450.9,2450.7,0.81574]
[1747611288965,1.3923,2450.9,2450.8,1.2948]
[1747611289161,1.3923,2450.9,2448.6,5.56920833]
[1747611289162,4.6001,2450.9,2449.9,43.858]
[1747611289355,0.8158,2450.6,2450.3,0.81587]
[1747611289562,4.0236,2450.6,2450.4,1.2948]
[1747611289767,1.3923,2450.5,2450.4,1.2948]
[1747611290064,1.3923,2450.5,2450.0,19.719]
[1747611290268,1.3923,2450.5,2450.1,2.11074]
[1747611290269,0.81585,2450.4,2450.1,2.11074]
[1747611290461,2.20814,2450.5,2450.2,0.81591]
[1747611290662,0.81585,2450.4,2450.3,1.2948]
[1747611291364,2.20814,2450.5,2450.3,4.3528]
[1747611292264,2.20814,2450.5,2450.3,1.2948]
[1747611292561,0.81582,2450.5,2450.3,2.11067]
[1747611292766,0.81582,2450.5,2450.3,2.11068]
[1747611292970,4.02361,2450.6,2450.3,2.11068]
[1747611293269,0.81585,2450.4,2450.3,1.2948]
[1747611293762,2.24024,2450.5,2450.3,2.11068]
[1747611294066,1.4244,2450.5,2450.3,5.16868]
[1747611294268,2.24022,2450.5,2450.3,1.2948]
[1747611294470,0.81585,2450.4,2450.3,1.2948]
[1747611294669,1.4244,2450.5,2450.1,3.058]
[1747611294871,1.3731,2450.3,2450.2,1.4187]
[1747611295070,4.5809,2450.3,2450.2,1.4187]
[1747611295366,1.3731,2450.3,2450.2,2.23462]
[1747611295973,4.5809,2450.3,2450.2,1.4187]
[1747611296171,4.5809,2450.3,2450.2,2.23462]
[1747611296587,4.5809,2450.3,2450.2,1.4187]
[1747611296888,4.5809,2450.3,2450.2,2.23462]
[1747611297082,4.57585407,2450.3,2450.2,2.23462]
[1747611297281,3.2078,2450.3,2450.2,2.23462]
[1747611297983,0.9962,2450.9,2450.2,2.23462]
[1747611298184,9.714,2451.0,2450.4,2.03964]
[1747611298380,0.81571,2450.9,2450.8,0.09218003]
[1747611298681,4.02351,2450.9,2450.8,0.09218003]
[1747611298886,0.81589,2450.3,2450.1,0.81592]
[1747611299078,3.2078,2450.3,2450.0,1.4051]
[1747611299278,3.2078,2450.3,2450.1,0.81595]
[1747611299474,4.02371,2450.3,2450.1,0.81595]
[1747611299687,0.81594,2450.2,2450.0,2.22107]
[1747611300285,2.22344,2450.2,2450.0,2.22107]
[1747611300779,0.8161,2449.7,2449.4,0.81617]
[1747611300983,0.8161,2449.7,2449.5,0.81615]
[1747611300984,1.3857,2449.6,2449.5,0.81615]
[1747611301181,9.75,2449.8,2449.5,0.81612]
[1747611301485,0.81618,2449.4,2449.3,1.3497]
[1747611301692,4.024,2449.4,2449.1,1.3497]
[1747611301989,0.81625,2449.2,2449.1,1.3497]
[1747611302188,11.1277,2449.3,2448.9,9.86]
[1747611302376,3.2078,2449.4,2449.3,0.81622]
[1747611302579,4.5935,2449.7,2449.3,0.81619]
[1747611302788,0.81614,2449.6,2449.4,1.3497]
[1747611303382,1.3857,2449.6,2448.6,1.0311]
[1747611303576,0.81628,2449.2,2449.0,1.3372]
[1747611303780,3.2078,2449.4,2449.0,1.3372]
[1747611303976,9.785,2449.5,2449.0,1.3372]
[1747611304193,9.785,2449.5,2449.1,9.863]
[1747611304379,2.20182,2449.6,2449.3,0.81619]
[1747611304586,1.3857,2449.6,2449.4,1.3372]
[1747611304783,1.3857,2449.6,2449.4,2.15336]
[1747611304784,2.20182,2449.6,2449.4,2.15336]
[1747611304983,0.81615,2449.5,2449.4,1.3372]
[1747611305581,1.3857,2449.6,2449.5,0.81615]
[1747611305785,3.2078,2450.1,2449.5,15.11118]
[1747611306089,1.2966,2450.3,2449.6,1.3372]
[1747611306285,0.81594,2450.2,2449.6,1.3372]
[1747611306491,0.81584,2450.5,2450.3,0.81587]
[1747611306688,2.03955,2450.5,2449.6,3.2078]
[1747611306889,0.816,2450.0,2449.5,3.058]
[1747611307088,3.2078,2450.2,2449.7,0.81608]
[1747611307289,13.0238,2450.2,2449.8,1.3487]
[1747611307488,9.816,2450.2,2449.8,1.3487]
[1747611307789,9.816,2450.2,2450.1,0.81595]
[1747611308085,9.816,2450.2,2449.6,9.864]
[1747611308291,3.2078,2449.9,2449.6,9.864]
[1747611308487,1.3725,2449.8,2449.5,1.3487]
[1747611308789,3.2078,2449.6,2449.0,0.09218003]
[1747611309092,4.07937,2450.4,2449.0,0.09218003]
[1747611309093,4.02374,2450.2,2449.3,0.81622]
[1747611309287,4.02373,2450.2,2449.5,5.24818]
[1747611309488,2.18845,2450.1,2449.9,0.816]
[1747611309690,1.3725,2450.1,2450.0,2.23658]
[1747611309886,3.2078,2450.2,2450.1,0.81595]
[1747611310091,4.02372,2450.2,2450.1,1.4206]
[1747611310387,0.81597,2450.1,2449.9,0.816]
[1747611310592,0.81597,2450.1,2450.0,0.94354192]
[1747611310593,1.3194,2450.1,2450.0,0.94354192]
[1747611310791,0.81588,2450.4,2450.1,0.81595]
[1747611310990,11.1774,2450.4,2450.2,0.81592]
[1747611311190,9.714,2450.5,2450.3,0.12755109]
[1747611311397,10.52983,2450.5,2450.4,0.12754592]
[1747611311593,1.3194,2450.6,2450.5,0.81582]
[1747611311798,4.25,2450.8,2450.5,1.54814592]
[1747611311996,4.25,2450.8,2450.6,0.12754592]
[1747611311997,3.2078,2450.8,2450.6,0.12754592]
[1747611312190,1.3194,2450.9,2450.7,1.54812033]
[1747611312389,1.3194,2450.9,2450.8,0.94324208]
[1747611312695,11.1884,2451.2,2450.8,0.12752208]
[1747611312896,0.81572,2450.8,2450.7,1.4206]
[1747611313197,11.2217,2451.0,2450.7,1.54812196]
[1747611313397,0.81568,2450.9,2450.8,0.12752196]
[1747611313594,5.38818,2450.9,2450.8,0.12752196]
[1747611313796,4.5725,2450.9,2450.8,0.12752196]
[1747611314092,4.5725,2450.9,2450.8,3.18552073]
[1747611314299,1.3647,2450.9,2450.8,3.18552073]
[1747611314598,2.18039,2450.9,2450.8,5.7501644]
[1747611314798,5.38819,2450.9,2450.8,5.7501644]
[1747611314993,10.38819,2450.9,2450.8,4.4413644]
[1747611315199,10.38819,2450.9,2450.8,1.3833644]
[1747611315388,10.38819,2450.9,2450.8,1.25584367]
[1747611315697,20.10219,2450.9,2450.8,1.25584367]
[1747611316099,15.10219,2450.9,2450.8,1.38338494]
[1747611316403,4.5725,2450.9,2450.8,1.38338494]
[1747611316594,5.38819,2450.9,2450.8,1.38338494]
[1747611316992,4.5725,2450.9,2450.8,2.19910494]
[1747611317200,4.5725,2450.9,2450.8,5.25710494]
[1747611317602,5.38819,2450.9,2450.8,4.44138494]
[1747611317795,5.38819,2450.9,2450.8,4.44136487]
[1747611317992,20.10219,2450.9,2450.8,2.22083181]
[1747611318193,20.10219,2450.9,2450.3,1.58099925]
[1747611318194,0.81585,2450.4,2450.3,1.58099925]
[1747611318396,4.02365,2450.4,2450.3,1.58099925]
[1747611318602,0.81592,2450.2,2450.1,1.62573207]
[1747611319596,10.65292,2450.2,2450.1,1.62573207]
[1747611320196,1.377,2450.3,2450.2,0.81592]
[1747611320397,1.377,2450.3,2450.0,0.81597]
[1747611320593,0.8161,2449.7,2449.6,9.845]
[1747611320797,3.2078,2450.1,2449.6,11.1733]
[1747611321000,0.81597,2450.1,2449.6,11.1733]
[1747611321201,0.81592,2450.2,2449.6,11.1733]
[1747611321403,12.0319,2450.3,2450.1,0.81593]
[1747611321597,2.1929,2450.3,2450.2,1.3283]
[1747611322908,0.81588,2450.3,2450.2,1.3283]
[1747611323409,24.0323,2450.5,2450.2,1.3283]
[1747611323602,0.81587,2450.4,2450.2,2.1442]
[1747611323801,0.81587,2450.4,2450.3,1.3267]
[1747611324095,15.03414,2450.5,2450.3,5.20058]
[1747611324302,3.2078,2451.0,2450.3,7.5925]
[1747611324600,2.11212,2451.1,2450.9,0.81566]
[1747611324806,2.11212,2451.1,2451.0,1.3941]
[1747611325308,10.6076,2451.2,2451.0,2.20973]
[1747611325508,9.714,2451.7,2451.2,0.81557]
[1747611325697,0.81554,2451.4,2451.3,1.3941]
[1747611325901,1.3242,2451.6,2451.3,1.3941]
[1747611326097,1.3242,2451.6,2451.5,0.81549]
[1747611326306,9.833,2451.7,2451.3,5.26764]
[1747611326506,1.3242,2451.6,2451.3,4.4521]
[1747611326705,2.13967,2451.6,2451.4,0.8155]
[1747611327003,13.0258,2451.9,2451.5,1.3941]
[1747611327202,9.818,2451.9,2451.5,4.4521]
[1747611327599,0.81539,2451.8,2451.6,0.81543]
[1747611327803,1.3242,2452.0,2451.7,1.3517]
[1747611328009,0.81533,2452.0,2451.8,0.81537]
[1747611328309,13.0128,2452.2,2451.6,3.058]
[1747611328310,0.81542,2451.7,2451.6,3.058]
[1747611328613,0.81542,2451.7,2451.6,4.4097]
[1747611329112,4.6258,2451.9,2451.5,3.058]
[1747611329312,4.02325,2451.6,2451.5,3.058]
[1747611329512,4.02325,2451.6,2451.5,1.27171]
[1747611329513,23.58125,2451.6,2451.5,1.27171]
[1747611329814,38.40225,2451.6,2451.5,1e-05]
[1747611330218,0.81558,2451.3,2450.7,1.3517]
[1747611330420,9.829,2451.2,2450.8,0.12751117]
[1747611330709,4.02345,2451.0,2450.9,0.12751117]
[1747611330909,0.81569,2450.9,2450.6,10.65977]
[1747611331117,1.3381,2450.8,2450.7,2.3603619]
[1747611331305,10.63762,2451.1,2450.7,1.5446119]
[1747611331513,10.63762,2451.1,2450.8,0.1275119]
[1747611331514,9.822,2451.1,2450.8,0.1275119]
[1747611331705,9.817,2451.2,2450.9,2.3602819]
[1747611331904,11.1551,2451.2,2451.0,0.1275119]
[1747611332119,0.81562,2451.1,2451.0,1.4171]
[1747611332813,1.3381,2451.1,2450.7,1.4171]
[1747611333014,0.81571,2450.9,2450.8,0.12751468]
[1747611333406,2.15381,2450.9,2450.8,0.12751468]
[1747611333712,0.81567,2451.0,2450.8,0.94323468]
[1747611333914,2.21984,2451.1,2450.9,1.55831327]
[1747611334121,0.81565,2451.0,2450.9,1.4308]
[1747611334420,0.81565,2451.0,2450.9,1.55830975]
[1747611334620,2.21984,2451.1,2450.9,1.55830878]
[1747611334917,0.81562,2451.1,2451.0,0.12750878]
[1747611335918,3.2078,2451.3,2451.0,0.12750878]
[1747611336115,3.2078,2451.3,2451.1,1.55830878]
[1747611336315,4.02337,2451.3,2451.2,0.12750878]
[1747611336617,4.02337,2451.3,2451.2,0.12749159]
[1747611337107,5.39407,2451.3,2451.2,0.12749159]
[1747611337519,0.81565,2451.0,2450.9,0.09218003]
[1747611337717,0.81565,2451.0,2450.9,0.21968771]
[1747611338411,4.02345,2451.0,2450.9,0.21968771]
[1747611340314,4.02345,2451.0,2450.9,0.21969599]
[1747611340814,5.38155,2451.0,2450.9,0.21969599]
[1747611341320,10.38155,2451.0,2450.9,0.09218003]
[1747611341614,29.93855,2451.0,2450.9,3e-08]
[1747611341817,2.03939,2450.8,2449.9,1.3598]
[1747611342011,0.81595,2450.1,2450.0,0.12754597]
[1747611342209,3.2078,2450.1,2450.0,0.12756666]
[1747611342414,3.2078,2450.7,2450.6,0.81579]
[1747611342612,0.81573,2450.8,2450.6,0.94331875]
[1747611342814,4.02353,2450.8,2450.7,1.48734875]
[1747611343423,4.02352,2450.8,2450.7,1.48734875]
[1747611343825,4.02352,2450.8,2450.7,0.12754875]
[1747611344125,4.02353,2450.8,2450.6,0.81575]
[1747611344318,4.02352,2450.8,2450.7,1.47083193]
[1747611344923,3.2078,2450.8,2449.8,2.04012]
[1747611345120,0.81592,2450.2,2450.1,1.3433]
[1747611345324,0.81603,2449.9,2449.7,10.8287]
[1747611345622,0.81602,2449.9,2449.8,1.47086515]
[1747611345824,0.81602,2449.9,2449.8,1.4708648]
[1747611346016,0.81597,2450.1,2449.9,0.81602]
[1747611346211,0.81597,2450.1,2450.0,1.4217648]
[1747611347125,5.24767,2450.2,2449.7,10.8287]
[1747611347322,4.02382,2449.9,2449.8,0.12756912]
[1747611347626,0.81612,2449.6,2449.5,1.2942]
[1747611347823,0.81612,2449.6,2449.5,1.42176573]
[1747611348024,0.81612,2449.6,2449.5,1.42176766]
[1747611348322,0.81612,2449.6,2449.5,4.47976775]
[1747611348323,4.02392,2449.6,2449.5,4.47976775]
[1747611348518,4.02392,2449.6,2449.5,3.058]
[1747611348922,10.42192,2449.6,2449.5,3.058]
[1747611349129,0.81632,2449.0,2448.9,1.19968398]
[1747611349324,4.02412,2449.0,2448.9,1.19968398]
[1747611349827,3.2078,2449.3,2448.9,1.19968398]
[1747611350024,3.2078,2449.7,2449.5,0.81615]
[1747611350323,9.723,2450.1,2449.5,0.94372388]
[1747611350324,0.81607,2449.8,2449.5,0.94372388]
[1747611350523,0.81607,2449.8,2449.6,0.12757578]
[1747611350725,0.81607,2449.8,2449.6,2.22371]
[1747611350921,2.25151,2450.0,2449.7,0.94364354]
[1747611351121,4.02382,2449.9,2449.8,1.4076]
[1747611351620,0.81607,2449.8,2449.6,3.058]
[1747611351925,0.81604,2449.9,2449.6,3.058]
[1747611352128,0.81605,2449.8,2449.7,1.4076]
[1747611352329,0.81612,2449.6,2449.5,3.058]
[1747611352527,3.2078,2449.9,2449.5,3.058]
[1747611352528,3.2078,2450.2,2449.5,3.058]
[1747611352830,1.3704,2450.1,2449.6,0.12758002]
[1747611353026,3.2078,2450.2,2450.1,0.81595]
[1747611353331,0.81595,2450.1,2450.0,3.058]
[1747611354025,2.18635,2450.1,2450.0,3.058]
[1747611354225,1.3704,2450.1,2449.6,10.5481]
[1747611354532,3.2078,2450.2,2449.7,1.54676919]
[1747611354728,3.2078,2450.2,2450.0,0.81596]
[1747611355030,0.81604,2449.9,2449.3,3.2078]
[1747611355230,0.81605,2449.8,2449.7,9.732]
[1747611355431,0.81605,2449.8,2449.7,9.85956405]
[1747611355629,0.81603,2449.9,2449.7,9.85956405]
[1747611355929,4.02373,2450.2,2449.9,0.816]
[1747611356234,4.02373,2450.2,2450.1,0.09218003]
[1747611356730,3.2078,2450.2,2450.1,0.09218003]
[1747611357131,3.2078,2450.2,2450.1,1.43728003]
[1747611357430,3.2078,2450.2,2450.1,17.1127784]
[1747611357626,1.00302037,2450.6,2450.5,0.81582]
[1747611357929,1.00302037,2450.6,2450.1,21.6454284]
[1747611357930,0.81585,2450.5,2450.2,0.81591]
[1747611358224,1.00302037,2450.6,2450.3,0.127535]
[1747611358225,0.81585,2450.4,2450.3,0.127535]
[1747611358425,0.81592,2450.2,2450.1,12.88218003]
[1747611358628,1.395,2450.4,2450.1,13.0097297]
[1747611358830,0.81585,2450.4,2450.2,1.44644381]
[1747611359132,0.81588,2450.3,2450.2,1.3189]
[1747611359332,0.81588,2450.3,2450.2,1.44644699]
[1747611360130,1.395,2450.6,2450.2,1.44644699]
[1747611360340,1.00302037,2450.9,2450.4,3.2078]
[1747611360542,1.00302037,2450.9,2450.8,0.81572]
[1747611360743,1.00302037,2450.9,2450.7,4.02352]
[1747611361043,0.81577,2450.7,2450.3,1.0656]
[1747611361346,0.81577,2450.7,2450.5,0.81582]
[1747611361540,0.81577,2450.7,2450.6,1.45822985]
[1747611361844,0.81585,2450.4,2450.3,1.0656]
[1747611362044,0.81585,2450.4,2450.3,2.52383792]
[1747611362242,0.81585,2450.4,2450.3,1.45823792]
[1747611362435,0.81585,2450.4,2450.3,1.45824538]
[1747611362631,0.81592,2450.2,2450.1,0.09218003]
[1747611362835,0.81592,2450.2,2450.1,0.2197256]
[1747611363235,0.81592,2450.2,2450.1,1.5504256]
[1747611363740,2.23991,2450.3,2450.1,1.5504256]
[1747611363936,1.424,2450.3,2450.2,0.12754557]
[1747611364244,3.2078,2450.5,2450.2,0.12754557]
[1747611364537,0.81585,2450.4,2450.3,0.1275471]
[1747611364733,0.81585,2450.4,2450.1,0.09218003]
[1747611364734,0.81592,2450.2,2450.1,0.09218003]
[1747611364930,2.4946,2450.3,2450.1,0.09218003]
[1747611365138,2.2107,2450.3,2450.1,0.90812003]
[1747611365344,2.2107,2450.3,2450.1,2.22464]
[1747611365536,1.3948,2450.3,2450.1,1.4087]
[1747611365730,2.2107,2450.3,2450.1,1.4087]
[1747611365934,0.81592,2450.2,2450.1,1.4087]
[1747611366133,2.21072,2450.2,2450.1,1.4087]
[1747611366334,0.81595,2450.1,2450.0,3.058]
[1747611366537,9.664,2450.4,2450.2,0.81591]
[1747611366741,3.2078,2450.5,2450.1,1.4087]
[1747611367042,10.47965,2451.1,2450.4,5.24738]
[1747611367246,20.7808,2451.2,2450.5,2.60135249]
[1747611367445,0.81568,2451.0,2450.7,0.81573]
[1747611367635,0.81569,2450.9,2450.8,1.49495249]
[1747611367847,0.81579,2450.6,2450.5,1.0651]
[1747611368045,0.81579,2450.6,2450.5,0.12753307]
[1747611368346,0.81588,2450.3,2450.2,0.09218003]
[1747611368553,10.55088,2450.3,2450.2,0.09218003]
[1747611369054,11.91328,2450.3,2450.2,0.09218003]
[1747611369539,2.17828,2450.3,2450.2,0.09218003]
[1747611369747,2.17828,2450.3,2450.2,0.21974198]
[1747611370140,9.714,2450.6,2450.5,0.81582]
[1747611370343,9.714,2450.6,2450.5,0.94336445]
[1747611370537,13.92482037,2450.9,2450.7,0.81575]
[1747611370743,10.71702037,2450.9,2450.8,1.50292408]
[1747611370947,1.00302037,2450.9,2450.8,2.31864408]
[1747611371247,1.81871037,2450.9,2450.8,4.56092408]